fUST/lending_fUST_20250920
["ID","MTS","AMOUNT","RATE_DAILY","PERIOD"]
[386525080,1758349851027,-15000.0,0.00029,7]
[386525081,1758349851036,-151.0,0.00029,7]
[386525082,1758349851045,-151.0,0.00029,7]
[386525083,1758349851056,-272.047191,0.00029,7]
[386525084,1758349851065,-151.0,0.00029,7]
[386525085,1758349851077,-151.0,0.00029,7]
[386525086,1758349851087,-284.474576,0.00029,7]
[386525087,1758349851097,-284.474576,0.00029,7]
[386525088,1758349851107,-284.474576,0.00029,7]
[386525089,1758349851116,-284.474581,0.00029,7]
[386525090,1758349851126,-531.84256808,0.00029,7]
[386525091,1758349851135,-558.13,0.00029027,15]
[386525092,1758349851145,-450.0,0.00029041,5]
[386525093,1758349851154,-570.69,0.00029096,2]
[386525094,1758349851163,-558.13,0.00029127,15]
[386525095,1758349851173,-9740.06720264,0.00029138,2]
[386525096,1758349851183,-210.0,0.0002916,30]
[386525097,1758349851192,-4360.07,0.000292,7]
[386525098,1758349851202,-250.0,0.000292,10]
[386525099,1758349851212,-1160.73847091,0.00029208,2]
[386525100,1758349851223,-1159.55,0.00029221,2]
[386525101,1758349851235,-480.0,0.00029221,2]
[386525102,1758349851245,-2786.99,0.00029225,2]
[386525103,1758349851254,-558.13,0.00029227,15]
[386525104,1758349851263,-151.0,0.00029228,7]
[386525105,1758349851273,-151.0,0.00029228,7]
[386525106,1758349851282,-287.921704,0.00029228,7]
[386525107,1758349851292,-151.0,0.00029228,7]
[386525108,1758349851302,-151.0,0.00029228,7]
[386525109,1758349851311,-151.0,0.00029228,7]
[386525110,1758349851321,-4642.95388364,0.00029228,2]
[386525111,1758349851330,-337616.66620357,0.00029238,7]
[386525112,1758349851435,-160.0,0.00023096,2]
[386525113,1758349851445,-408.22,0.00027077,2]
[386525114,1758349851455,-14730.41298336,0.00029238,7]
[386525115,1758349851467,-331.33674966,0.00029238,7]
[386525116,1758349851477,-1384.120029,0.00029238,7]
[386525117,1758349851489,-4892.7999998,0.00029238,7]
[386525118,1758349851531,-480.0,0.00022967,2]
[386525119,1758349851540,-378.35237562,0.00023241,2]
[386525120,1758349851549,-151.0,0.000249,7]
[386525121,1758349851559,-151.0,0.00025,7]
[386525122,1758349851568,-151.0,0.00025,7]
[386525123,1758349851577,-21.14482798,0.0002648,7]
[386525124,1758349851588,-129.85517202,0.0002648,7]
[386525125,1758349851597,-10297.9644702,0.00029238,7]
[386525126,1758349851609,-1085.27955061,0.00029238,7]
[386525127,1758349851652,-151.0,0.000249,7]
[386525128,1758349851662,-258.913016,0.000249,7]
[386525129,1758349851671,-151.0,0.00025,7]
[386525130,1758349851680,-80.52598106,0.00025,7]
[386525131,1758349851692,-70.47401894,0.00025,7]
[386525132,1758349851702,-151.0,0.0002648,7]
[386525133,1758349851711,-585.5584834,0.00026904,2]
[386525134,1758349851721,-151.0,0.00027,7]
[386525135,1758349851731,-151.0,0.00027,7]
[386525136,1758349851741,-301.26598729,0.00029238,7]
[386525137,1758349851752,-707.121888,0.00029238,7]
[386525138,1758349851764,-514.809326,0.00029238,7]
[386525139,1758349851775,-7947.56342052,0.00029238,7]
[386525140,1758349883350,-300.0,0.00021265,2]
[386525141,1758349883377,-500.0,0.00021266,2]
[386525142,1758349883403,-500.0,0.00021266,2]
[386525143,1758349883430,-500.0,0.00021266,2]
[386525144,1758349883460,-500.0,0.00021266,2]
[386525145,1758349883488,-500.0,0.00021266,2]
[386525146,1758349883516,-500.0,0.00021266,2]
[386525147,1758349883544,-500.0,0.00021266,2]
[386525148,1758349883570,-500.0,0.00021266,2]
[386525149,1758349883597,-500.0,0.00021266,2]
[386525150,1758349883627,-354.2658234,0.00021266,2]
[386525151,1758349883655,-500.0,0.00021266,2]
[386525152,1758349883683,-500.0,0.00021266,2]
[386525153,1758349883707,-500.0,0.00021266,2]
[386525154,1758349883730,-500.0,0.00021266,2]
[386525155,1758349883755,-500.0,0.00021266,2]
[386525156,1758349883780,-500.0,0.00021266,2]
[386525157,1758349883804,-500.0,0.00021266,2]
[386525158,1758349883831,-500.0,0.00021266,2]
[386525159,1758349883857,-500.0,0.00021266,2]
[386525160,1758349883881,-500.0,0.00021266,2]
[386525161,1758349883906,-500.0,0.00021266,2]
[386525162,1758349883931,-500.0,0.00021266,2]
[386525163,1758349883955,-300.0,0.00021266,2]
[386525164,1758349883979,-387.97710651,0.00021266,2]
[386525165,1758349884007,-500.0,0.00021266,2]
[386525166,1758349884033,-500.0,0.00021266,2]
[386525167,1758349884060,-500.0,0.00021266,2]
[386525168,1758349884086,-452.38257487,0.00021266,2]
[386525169,1758349884114,-500.0,0.00021266,2]
[386525170,1758349884141,-500.0,0.00021266,2]
[386525171,1758349884170,-500.0,0.00021266,2]
[386525172,1758349884198,-500.0,0.00021266,2]
[386525173,1758349884225,-389.22562038,0.00021266,2]
[386525174,1758349884251,-548.23876892,0.00021266,2]
[386525175,1758349884277,-499.99999999,0.00021266,2]
[386525176,1758349884304,-497.83423706,0.00022266,2]
[386525177,1758349884330,-486.75134044,0.00022967,2]
[386525178,1758349884355,-480.0,0.00022967,2]
[386525179,1758349902320,480.0,0.00022967,2]
[386525180,1758349909170,267.62641003,0.00022967,2]
[386525181,1758349912853,500.0,0.00023,2]
[386525208,1758349934982,480.0,0.00022967,2]
[386525209,1758349935596,167.2998927,0.00012335,2]
[386525211,1758349941531,480.0,0.00022967,2]
[386525212,1758349944402,480.0,0.00022967,2]
[386525214,1758349975931,480.0,0.00022266,2]
[386525215,1758349976181,480.0,0.0002254,2]
[386525216,1758349976426,480.0,0.00022814,2]
[386525217,1758349976929,480.0,0.00022967,2]
[386525218,1758349988306,480.0,0.00022266,2]
[386525219,1758349988580,480.0,0.0002254,2]
[386525220,1758349988817,480.0,0.00022814,2]
[386525221,1758349990632,480.0,0.00022967,2]
[386525222,1758349993434,480.0,0.00022967,2]
[386525223,1758350033362,480.79400789,0.00022967,2]
[386525224,1758350039072,480.0,0.00022967,2]
[386525225,1758350051028,480.0,0.00022967,2]
[386525226,1758350052792,480.0,0.00022967,2]
[386525227,1758350057275,480.0,0.00022266,2]
[386525228,1758350057551,480.0,0.0002254,2]
[386525229,1758350057793,480.0,0.00022814,2]
[386525230,1758350070902,480.0,0.00022266,2]
[386525231,1758350071094,480.0,0.00022967,2]
[386525232,1758350071143,480.0,0.0002254,2]
[386525233,1758350071432,480.0,0.00022814,2]
[386525234,1758350090399,480.0,0.00022266,2]
[386525235,1758350090685,480.0,0.0002254,2]
[386525236,1758350090947,480.0,0.00022814,2]
[386525237,1758350093958,480.0,0.00022967,2]
[386525238,1758350103118,480.0,0.00022266,2]
[386525239,1758350103438,480.0,0.0002254,2]
[386525240,1758350103696,480.0,0.00022814,2]
[386525241,1758350117181,4487.60421781,0.00022246,2]
[386525258,1758350839133,-198.328198,0.00021294,2]
[386525259,1758350839156,-160.0,0.00021348,2]
[386525260,1758350839179,-98.85135977,0.0002135,2]
[386525261,1758350869637,158.0,8e-07,2]
[386525262,1758350870687,158.0,8e-07,2]
[386525263,1758350871736,158.0,8e-07,2]
[386525264,1758350872841,158.0,8e-07,2]
[386525265,1758350873959,158.0,8e-07,2]
[386525266,1758350875775,158.0,8e-07,2]
[386525267,1758350876970,158.0,8e-07,2]
[386525268,1758350960129,-198.63431393,0.0002071,2]
[386525269,1758350960150,-420.299907,0.00021227,2]
[386525270,1758350960170,-944.25227963,0.0002135,2]
[386525271,1758350960190,-59.69721378,0.00021458,2]
[386525275,1758351017780,207.11122295,0.0002118,2]
[386525276,1758351017806,186.87526954,0.0002118,2]
[386525313,1758351032241,-272.01350751,0.0002118,2]
[386525315,1758351032251,-38.73886854,0.0002135,2]
[386525317,1758351032264,-121.26113146,0.0002135,2]
[386525319,1758351032274,-127.43620252,0.00021458,2]
[386525321,1758351032283,-243.8959719,0.00021545,2]
[386525323,1758351032292,-180.259439,0.00021558,2]
[386525325,1758351032301,-634.5600995,0.00021908,2]
[386525327,1758351032311,-754.0,0.00022243,2]
[386525328,1758351032320,-300.0,0.00022244,2]
[386525330,1758351032330,-300.0,0.00022244,2]
[386525331,1758351032339,-300.0,0.00022244,2]
[386525332,1758351032348,-1200.0,0.00022244,2]
[386525333,1758351032357,-307.13922377,0.00022245,2]
[386525334,1758351032367,-500.0,0.00022245,2]
[386525335,1758351032376,-571.46521942,0.00022245,2]
[386525336,1758351032386,-288.04259355,0.00022245,2]
[386525337,1758351032395,-374.82312476,0.00022245,2]
[386525338,1758351032404,-500.0,0.00022245,2]
[386525339,1758351032413,-500.0,0.00022245,2]
[386525340,1758351032423,-500.0,0.00022245,2]
[386525341,1758351032433,-500.0,0.00022245,2]
[386525342,1758351032443,-500.0,0.00022245,2]
[386525343,1758351032452,-1044.69434064,0.00022245,2]
[386525344,1758351032462,-480.0,0.00022245,2]
[386525345,1758351032471,-480.0,0.00022245,2]
[386525346,1758351032480,-480.0,0.00022245,2]
[386525347,1758351032490,-10958.53669409,0.00022246,2]
[386525348,1758351032500,-480.0,0.00022263,2]
[386525349,1758351032510,-480.0,0.00022263,2]
[386525350,1758351032521,-480.0,0.00022263,2]
[386525351,1758351032530,-379.61966145,0.00022263,2]
[386525352,1758351032542,-100.38033855,0.00022263,2]
[386525353,1758351032552,-480.0,0.00022263,2]
[386525354,1758351032561,-180.28549299,0.00022263,2]
[386525355,1758351032573,-299.71450701,0.00022263,2]
[386525356,1758351032583,-33.75472411,0.00022263,2]
[386525357,1758351032594,-446.24527589,0.00022263,2]
[386525358,1758351032603,-329.48176946,0.00022263,2]
[386525359,1758351032615,-150.51823054,0.00022263,2]
[386525360,1758351032625,-480.0,0.00022263,2]
[386525361,1758351032634,-480.0,0.00022263,2]
[386525362,1758351032643,-416.08887781,0.00022263,2]
[386525363,1758351032655,-63.91112219,0.00022263,2]
[386525364,1758351032664,-480.0,0.00022263,2]
[386525365,1758351032674,-480.0,0.00022263,2]
[386525366,1758351032684,-118.18887781,0.00022263,2]
[386525367,1758351032696,-361.81112219,0.00022263,2]
[386525368,1758351032707,-487.51624194,0.00022266,2]
[386525369,1758351032718,-500.46015219,0.00022266,2]
[386525370,1758351032727,-484.87951298,0.00022266,2]
[386525371,1758351032737,-164.35078399,0.00022266,2]
[386525372,1758351032746,-419.85936341,0.00022266,2]
[386525373,1758351032755,-254.99933765,0.00022518,2]
[386525374,1758351032764,-480.0,0.00022519,2]
[386525375,1758351032774,-480.0,0.00022519,2]
[386525376,1758351032783,-480.0,0.00022519,2]
[386525377,1758351032793,-353.11076524,0.00022537,2]
[386525378,1758351032802,-480.0,0.00022537,2]
[386525379,1758351032812,-480.0,0.00022537,2]
[386525380,1758351032822,-480.0,0.00022537,2]
[386525381,1758351032831,-461.25397664,0.00022537,2]
[386525382,1758351032841,-480.0,0.00022537,2]
[386525383,1758351032850,-480.0,0.00022537,2]
[386525384,1758351032859,-480.0,0.00022537,2]
[386525385,1758351032869,-480.0,0.00022537,2]
[386525386,1758351032879,-480.0,0.00022537,2]
[386525387,1758351032888,-480.0,0.00022537,2]
[386525388,1758351032898,-612.67858368,0.00022537,2]
[386525389,1758351032907,-480.0,0.00022537,2]
[386525390,1758351032917,-480.0,0.00022537,2]
[386525391,1758351032927,-480.0,0.00022539,2]
[386525392,1758351032937,-480.0,0.00022539,2]
[386525393,1758351032947,-480.0,0.00022539,2]
[386525394,1758351032956,-480.0,0.00022539,2]
[386525395,1758351032965,-521.25260801,0.00022539,2]
[386525396,1758351032975,-480.0,0.00022539,2]
[386525397,1758351032985,-480.0,0.00022539,2]
[386525398,1758351032995,-480.0,0.00022539,2]
[386525399,1758351033004,-480.0,0.00022539,2]
[386525400,1758351033014,-480.0,0.00022539,2]
[386525401,1758351033023,-521.62,0.00022539,2]
[386525402,1758351033033,-480.0,0.00022539,2]
[386525403,1758351033042,-480.0,0.00022539,2]
[386525404,1758351033052,-480.0,0.00022539,2]
[386525405,1758351033062,-480.0,0.00022539,2]
[386525406,1758351033072,-480.0,0.00022539,2]
[386525407,1758351033082,-480.0,0.00022793,2]
[386525408,1758351033092,-480.0,0.00022793,2]
[386525409,1758351033102,-480.0,0.00022793,2]
[386525410,1758351033111,-480.0,0.00022811,2]
[386525411,1758351033121,-480.0,0.00022811,2]
[386525412,1758351033130,-480.0,0.00022811,2]
[386525413,1758351033140,-480.0,0.00022811,2]
[386525414,1758351033150,-480.0,0.00022811,2]
[386525415,1758351033159,-480.0,0.00022811,2]
[386525416,1758351033169,-480.0,0.00022811,2]
[386525417,1758351033178,-480.0,0.00022811,2]
[386525418,1758351033188,-480.0,0.00022811,2]
[386525419,1758351033198,-480.0,0.00022811,2]
[386525420,1758351033207,-480.0,0.00022811,2]
[386525421,1758351033217,-480.0,0.00022813,2]
[386525422,1758351033227,-480.0,0.00022813,2]
[386525423,1758351033237,-480.0,0.00022813,2]
[386525424,1758351033245,-480.0,0.00022813,2]
[386525425,1758351033255,-480.0,0.00022813,2]
[386525426,1758351033266,-480.0,0.00022813,2]
[386525427,1758351033275,-480.0,0.00022813,2]
[386525428,1758351033285,-480.0,0.00022813,2]
[386525429,1758351033295,-407.14153904,0.00022813,2]
[386525430,1758351033304,-521.62,0.00022813,2]
[386525431,1758351033314,-480.0,0.00022813,2]
[386525432,1758351033323,-480.0,0.00022813,2]
[386525433,1758351033332,-480.0,0.00022813,2]
[386525434,1758351033342,-480.0,0.00022813,2]
[386525435,1758351033351,-480.0,0.00022813,2]
[386525436,1758351033360,-480.0,0.00022967,2]
[386525437,1758351033369,-484.58452365,0.00022967,2]
[386525438,1758351033379,-480.0,0.00022967,2]
[386525439,1758351033388,-484.35256507,0.00022967,2]
[386525440,1758351033398,-480.0,0.00022967,2]
[386525441,1758351033408,-480.0,0.00022967,2]
[386525442,1758351033417,-480.0,0.00022967,2]
[386525443,1758351033427,-480.0,0.00022967,2]
[386525444,1758351033437,-1318.88,0.00022967,2]
[386525445,1758351033446,-480.0,0.00022967,2]
[386525446,1758351033456,-218.03426629,0.00023,2]
[386525447,1758351033465,-160.0,0.00023,2]
[386525448,1758351033476,-233.47853244,0.00023,2]
[386525449,1758351033485,-160.0,0.00023,2]
[386525450,1758351033494,-480.0,0.00023067,2]
[386525451,1758351033504,-480.0,0.00023067,2]
[386525452,1758351033513,-480.0,0.00023067,2]
[386525453,1758351033523,-480.0,0.00023068,2]
[386525454,1758351033533,-2728.94,0.00023068,2]
[386525455,1758351033543,-480.0,0.00023068,2]
[386525456,1758351033552,-480.0,0.0002307,2]
[386525457,1758351033562,-480.0,0.0002307,2]
[386525458,1758351033572,-480.0,0.00023085,2]
[386525459,1758351033582,-480.0,0.00023085,2]
[386525460,1758351033591,-480.0,0.00023085,2]
[386525461,1758351033600,-480.0,0.00023085,2]
[386525462,1758351033611,-480.0,0.00023085,2]
[386525463,1758351033621,-480.0,0.00023085,2]
[386525464,1758351033630,-441.87022583,0.00023085,2]
[386525465,1758351033640,-547.87616794,0.00023085,2]
[386525466,1758351033649,-480.0,0.00023085,2]
[386525467,1758351033658,-480.0,0.00023085,2]
[386525468,1758351033668,-480.0,0.00023085,2]
[386525469,1758351033677,-480.0,0.00023087,2]
[386525470,1758351033687,-480.0,0.00023087,2]
[386525471,1758351033696,-480.0,0.00023087,2]
[386525472,1758351033706,-480.0,0.00023087,2]
[386525473,1758351033717,-480.0,0.00023087,2]
[386525474,1758351033728,-480.0,0.00023087,2]
[386525475,1758351033738,-480.0,0.00023087,2]
[386525476,1758351033747,-480.0,0.00023087,2]
[386525477,1758351033757,-521.62,0.00023087,2]
[386525478,1758351033767,-480.0,0.00023087,2]
[386525479,1758351033776,-480.0,0.00023087,2]
[386525480,1758351033786,-480.0,0.00023087,2]
[386525481,1758351033796,-480.0,0.00023087,2]
[386525482,1758351033805,-480.0,0.00023241,2]
[386525483,1758351033815,-480.0,0.00023241,2]
[386525484,1758351033825,-480.0,0.00023241,2]
[386525485,1758351033835,-1318.88,0.00023241,2]
[386525486,1758351033845,-480.0,0.00023241,2]
[386525487,1758351033860,-480.0,0.00023341,2]
[386525488,1758351033870,-480.0,0.00023341,2]
[386525489,1758351033880,-480.0,0.00023341,2]
[386525490,1758351033890,-480.0,0.00023342,2]
[386525491,1758351033899,-2728.94,0.00023342,2]
[386525492,1758351033909,-480.0,0.00023342,2]
[386525493,1758351033920,-480.0,0.00023344,2]
[386525494,1758351033929,-480.0,0.00023344,2]
[386525495,1758351033938,-480.0,0.00023359,2]
[386525496,1758351033948,-480.0,0.00023359,2]
[386525497,1758351033958,-480.0,0.00023359,2]
[386525498,1758351033967,-480.0,0.00023359,2]
[386525499,1758351033977,-480.0,0.00023359,2]
[386525500,1758351033986,-480.0,0.00023359,2]
[386525501,1758351033996,-480.0,0.00023359,2]
[386525502,1758351034005,-480.0,0.00023359,2]
[386525503,1758351034015,-480.0,0.00023359,2]
[386525504,1758351034025,-480.0,0.00023361,2]
[386525505,1758351034034,-480.0,0.00023361,2]
[386525506,1758351034044,-480.0,0.00023361,2]
[386525507,1758351034054,-480.0,0.00023361,2]
[386525508,1758351034063,-480.0,0.00023361,2]
[386525509,1758351034074,-480.0,0.00023361,2]
[386525510,1758351034083,-480.0,0.00023361,2]
[386525511,1758351034093,-480.0,0.00023361,2]
[386525512,1758351034103,-521.62,0.00023361,2]
[386525513,1758351034113,-480.0,0.00023361,2]
[386525514,1758351034122,-480.0,0.00023361,2]
[386525515,1758351034132,-480.0,0.00023361,2]
[386525516,1758351034141,-480.0,0.00023361,2]
[386525517,1758351034151,-214.26,0.00023367,2]
[386525518,1758351034160,-480.0,0.00023515,2]
[386525519,1758351034169,-480.0,0.00023515,2]
[386525520,1758351034179,-411.47818184,0.00023515,2]
[386525521,1758351034189,-1318.88,0.00023515,2]
[386525522,1758351034199,-480.0,0.00023515,2]
[386525523,1758351034208,-603.70924813,0.00023518,2]
[386525524,1758351034218,-200.0,0.00023561,2]
[386525525,1758351034227,-200.0,0.00023561,2]
[386525526,1758351034237,-200.0,0.00023561,2]
[386525527,1758351034246,-480.0,0.00023615,2]
[386525528,1758351034256,-480.0,0.00023615,2]
[386525529,1758351034265,-480.0,0.00023615,2]
[386525530,1758351034274,-480.0,0.00023616,2]
[386525531,1758351034284,-2728.94,0.00023616,2]
[386525532,1758351034294,-480.0,0.00023616,2]
[386525533,1758351034304,-480.0,0.00023618,2]
[386525534,1758351034313,-480.0,0.00023618,2]
[386525535,1758351034323,-480.0,0.00023633,2]
[386525536,1758351034332,-480.0,0.00023633,2]
[386525537,1758351034341,-480.0,0.00023633,2]
[386525538,1758351034351,-480.0,0.00023633,2]
[386525539,1758351034361,-480.0,0.00023633,2]
[386525540,1758351034371,-480.0,0.00023633,2]
[386525541,1758351034381,-480.0,0.00023633,2]
[386525542,1758351034488,-480.0,0.00023633,2]
[386525543,1758351034498,-480.0,0.00023633,2]
[386525544,1758351034508,-480.0,0.00023635,2]
[386525545,1758351034517,-480.0,0.00023635,2]
[386525546,1758351034527,-480.0,0.00023635,2]
[386525547,1758351034537,-523.03497711,0.00023635,2]
[386525548,1758351034547,-480.0,0.00023635,2]
[386525549,1758351034557,-480.0,0.00023635,2]
[386525550,1758351034567,-480.0,0.00023635,2]
[386525551,1758351034576,-480.0,0.00023635,2]
[386525552,1758351034586,-521.62,0.00023635,2]
[386525553,1758351034595,-480.0,0.00023635,2]
[386525554,1758351034606,-480.0,0.00023635,2]
[386525555,1758351034615,-333.35642079,0.00023635,2]
[386525556,1758351034625,-480.0,0.00023635,2]
[386525557,1758351034635,-480.0,0.00023789,2]
[386525558,1758351034647,-200.0,0.00023789,2]
[386525559,1758351034656,-480.0,0.00023789,2]
[386525560,1758351034666,-1318.88,0.00023789,2]
[386525561,1758351034675,-480.0,0.00023789,2]
[386525562,1758351034685,-480.0,0.00023889,2]
[386525563,1758351034694,-480.0,0.00023889,2]
[386525564,1758351034703,-480.0,0.00023889,2]
[386525565,1758351034716,-480.0,0.0002389,2]
[386525566,1758351034725,-2728.94,0.0002389,2]
[386525567,1758351034735,-480.0,0.0002389,2]
[386525568,1758351034744,-480.0,0.00023892,2]
[386525569,1758351034755,-480.0,0.00023892,2]
[386525570,1758351034764,-480.0,0.00023907,2]
[386525571,1758351034773,-480.0,0.00023907,2]
[386525572,1758351034782,-480.0,0.00023907,2]
[386525573,1758351034792,-480.0,0.00023907,2]
[386525574,1758351034801,-480.0,0.00023907,2]
[386525575,1758351034810,-480.0,0.00023907,2]
[386525576,1758351034820,-480.0,0.00023907,2]
[386525577,1758351034830,-480.0,0.00023907,2]
[386525578,1758351034839,-480.0,0.00023907,2]
[386525579,1758351034850,-480.0,0.00023909,2]
[386525580,1758351034859,-480.0,0.00023909,2]
[386525581,1758351034869,-480.0,0.00023909,2]
[386525582,1758351034879,-268.24880249,0.00023909,2]
[386525583,1758351034889,-480.0,0.00023909,2]
[386525584,1758351034899,-480.0,0.00023909,2]
[386525585,1758351034908,-480.0,0.00023909,2]
[386525586,1758351034917,-521.62,0.00023909,2]
[386525587,1758351034927,-480.0,0.00023909,2]
[386525588,1758351034936,-480.0,0.00023909,2]
[386525589,1758351034947,-480.0,0.00023909,2]
[386525590,1758351034957,-480.0,0.00024063,2]
[386525591,1758351034966,-200.0,0.00024063,2]
[386525592,1758351034976,-480.0,0.00024063,2]
[386525593,1758351034986,-1318.88,0.00024063,2]
[386525594,1758351034995,-480.0,0.00024063,2]
[386525595,1758351035004,-167.774,0.00024087,5]
[386525596,1758351035014,-1224.978737,0.00024133,2]
[386525597,1758351035023,-827.3114784,0.00024133,2]
[386525598,1758351035033,-480.0,0.00024163,2]
[386525599,1758351035043,-480.0,0.00024163,2]
[386525600,1758351035052,-480.0,0.00024164,2]
[386525601,1758351035064,-2728.94,0.00024164,2]
[386525602,1758351035074,-480.0,0.00024164,2]
[386525603,1758351035088,-480.0,0.00024166,2]
[386525604,1758351035098,-480.0,0.00024166,2]
[386525605,1758351035108,-480.0,0.00024181,2]
[386525606,1758351035118,-560.41968372,0.00024181,2]
[386525607,1758351035127,-480.0,0.00024181,2]
[386525608,1758351035136,-480.0,0.00024181,2]
[386525609,1758351035146,-480.0,0.00024181,2]
[386525610,1758351035155,-480.0,0.00024181,2]
[386525611,1758351035165,-480.0,0.00024181,2]
[386525612,1758351035174,-480.0,0.00024181,2]
[386525613,1758351035184,-480.0,0.00024183,2]
[386525614,1758351035193,-436.57841279,0.00024183,2]
[386525615,1758351035202,-480.0,0.00024183,2]
[386525616,1758351035213,-480.0,0.00024183,2]
[386525617,1758351035222,-215.53266787,0.00024183,2]
[386525618,1758351035232,-184.13289168,0.00024183,2]
[386525619,1758351035241,-521.62,0.00024183,2]
[386525620,1758351035251,-480.0,0.00024183,2]
[386525621,1758351035260,-480.0,0.00024183,2]
[386525622,1758351035270,-480.0,0.00024183,2]
[386525623,1758351035279,-164.22,0.00024276,3]
[386525624,1758351035288,-492.7,0.00024276,3]
[386525625,1758351035297,-2028.1,0.00024286,2]
[386525626,1758351035306,-480.0,0.00024337,2]
[386525627,1758351035316,-200.0,0.00024337,2]
[386525628,1758351035327,-480.0,0.00024337,2]
[386525629,1758351035337,-1318.88,0.00024337,2]
[386525630,1758351035348,-480.0,0.00024337,2]
[386525631,1758351035358,-450.19222599,0.00024347,2]
[386525632,1758351035368,-480.0,0.00024436,2]
[386525633,1758351035377,-480.0,0.00024436,2]
[386525634,1758351035387,-480.0,0.00024438,2]
[386525635,1758351035396,-2728.94,0.00024438,2]
[386525636,1758351035406,-480.0,0.00024438,2]
[386525637,1758351035415,-480.0,0.0002444,2]
[386525638,1758351035426,-480.0,0.0002444,2]
[386525639,1758351035436,-480.0,0.00024455,2]
[386525640,1758351035446,-154.20615155,0.00024455,2]
[386525641,1758351035455,-480.0,0.00024455,2]
[386525642,1758351035466,-480.0,0.00024455,2]
[386525643,1758351035476,-480.0,0.00024455,2]
[386525644,1758351035486,-480.0,0.00024455,2]
[386525645,1758351035495,-153.14000014,0.00024455,2]
[386525646,1758351035504,-480.0,0.00024457,2]
[386525647,1758351035514,-480.0,0.00024457,2]
[386525648,1758351035524,-480.0,0.00024457,2]
[386525649,1758351035533,-521.62,0.00024457,2]
[386525650,1758351035543,-480.0,0.00024457,2]
[386525651,1758351035552,-480.0,0.00024457,2]
[386525652,1758351035561,-480.0,0.00024457,2]
[386525653,1758351035570,-338.76680846,0.00024611,2]
[386525654,1758351035579,-200.0,0.00024611,2]
[386525655,1758351035589,-480.0,0.00024611,2]
[386525656,1758351035598,-1318.88,0.00024611,2]
[386525657,1758351035608,-480.0,0.00024611,2]
[386525658,1758351035617,-151.7,0.0002471,2]
[386525659,1758351035626,-480.0,0.0002471,2]
[386525660,1758351035636,-480.0,0.00024712,2]
[386525661,1758351035646,-2010.00778883,0.00024712,2]
[386525668,1758351038125,-480.0,0.00023087,2]
[386525669,1758351038134,-480.0,0.00023361,2]
[386525670,1758351038143,-190.60768841,0.00023635,2]
[386525671,1758351038154,-718.93221117,0.00024712,2]
[386525672,1758351038163,-591.6283543,0.00024712,2]
[386525673,1758351038173,-331.68,0.00024714,2]
[386525674,1758351038183,-480.0,0.00024714,2]
[386525675,1758351038193,-480.0,0.00024729,2]
[386525676,1758351038203,-480.0,0.00024729,2]